Cogmind - Beta 13 @@@ ROGUE MODE // 2024.05.16 @ 21:22:28 Player: SaltHuntress Result: Destroyed by S-10 Pest with Light Assault Rifle Performance ------------- Evolutions (1) 500 Regions Visited (2) 400 Robots Destroyed (34) 170 Value Destroyed (728) 728 Prototype IDs (2) 40 Alien Tech Used (0) 0 Bonus (0) 0 TOTAL SCORE: 1838 Bonus ------- None Cogmind --------- Core Integrity 0/400 Matter 293/300 Energy 260/265 System Corruption 0% Temperature Cool (0) Movement Walking (120) Location -9/Materials Parts ------- > --- POWER (1) -------- Improved Ion Engine > --- PROPULSION (3) --- Aluminum Leg Aluminum Leg Aluminum Leg > --- UTILITY (3) ------ Small Storage Unit > --- WEAPON (2) ------- Light Cannon Heavy Hammer > --- INVENTORY (8) ---- Ion Engine High-capacity Matter Pod (26) Terrain Scanner Field Recycling Unit (0) Particle Cannon Peak State ------------ > --- POWER ------------ Improved Ion Engine > --- PROPULSION ------- Aluminum Leg Aluminum Leg > --- UTILITY ---------- Small Storage Unit Weight Redist. System Propulsion Shielding > --- WEAPON ----------- Particle Cannon Heavy Hammer > --- INVENTORY -------- Ion Engine High-capacity Matter Pod Terrain Scanner Field Recycling Unit Light Cannon Grenade Launcher [Rating: 12] Favorites ----------- Power Ion Engine Engine Ion Engine Propulsion Aluminum Leg Leg Aluminum Leg Wheel Compact Wheel Utility Small Storage Unit Device Weight Redist. System Storage Small Storage Unit Protection Propulsion Shielding Weapon Light Cannon Energy Gun Spread Laser Energy Cannon Particle Cannon Ballistic Gun Light Assault Rifle Ballistic Cannon Light Cannon Launcher Grenade Launcher Impact Weapon Heavy Hammer Build | -11 -10 -9 ------- Run | Yrd Mat Mat Slots Evolved 2 | . . 2 Power . | . . . Propulsion 1 | . . 1 Utility 1 | . . 1 Weapon . | . . . Parts Attached 35 | 5 16 14 Power 4 | 1 2 1 Engine 4 | 1 2 1 Core . | . . . Reactor . | . . . Propulsion 9 | 2 3 4 Treads . | . . . Leg 7 | 2 2 3 Wheel 2 | . 1 1 Hover . | . . . Flight . | . . . Utility 5 | 1 2 2 Device 3 | . 2 1 Storage 1 | 1 . . Processor . | . . . Hackware . | . . . Protection 1 | . . 1 Artifact . | . . . Weapon 17 | 1 9 7 Energy Gun 1 | . 1 . Energy Cannon 1 | . . 1 Ballistic Gun 3 | 1 2 . Ballistic Cannon 6 | . 4 2 Launcher 4 | . 2 2 Special Weapon . | . . . Impact Weapon 2 | . . 2 Slashing Weapon . | . . . Piercing Weapon . | . . . Special Melee Weapon . | . . . Unidentified Prototypes . | . . . Parts Lost 7 | . 1 6 Power 1 | . . 1 Propulsion 2 | . 1 1 Utility 3 | . . 3 Weapon 1 | . . 1 Highest Loss Streak 2 | . 1 2 To Critical Strikes . | . . . Average Slot Usage (%) 89 | . 94 80 Engine 12 | . 14 10 Leg 18 | . 22 13 Wheel 2 | . 1 3 Device 15 | . 13 17 Storage 12 | . 14 11 Protection 1 | . . 3 Energy Cannon 2 | . . 5 Ballistic Gun 4 | . 5 2 Ballistic Cannon 8 | . 11 5 Launcher 6 | . 9 1 Impact Weapon 2 | . . 6 Naked Turns . | . . . Heaviest Build 20 | 11 16 20 Greatest Support 36 | 20 26 36 Greatest Overweight (x) 1 | . 1 1 Average Overweight (x) . | . . . Largest Inventory Capacity 8 | 8 8 8 Average Capacity 7 | 7 8 8 Most Carried 8 | 2 8 8 Average Carried 6 | 1 7 6 Final Capacity 8 | 8 8 8 Final Carried 8 | 2 8 5 Class Distribution -------------------- 100% | Mutant Dominant Class ---------------- Mutant | -10/Materials Mutant | -9/Materials Resources | -11 -10 -9 ----------- Run | Yrd Mat Mat Matter Collected 694 | 228 239 227 Remotely . | . . . Salvage Created 595 | . 293 302 Parts 48 | . 30 18 Haulers Intercepted . | . . . Recyclers Shooed . | . . . Parts Field Recycled . | . . . Retrieved Matter . | . . . Parts Self-Destructed . | . . . Prevented . | . . . Kills | -11 -10 -9 ------- Run | Yrd Mat Mat Combat Hostiles Destroyed 26 | . 16 10 Melee 1 | . . 1 Guns 4 | . 3 1 Cannons 7 | . 6 1 AOE 13 | . 7 6 Classes Destroyed 7 | . 5 2 Worker 3 | . 1 2 Tunneler 1 | . . 1 Operator 1 | . 1 . Watcher 3 | . 2 1 Swarmer 13 | . 9 4 Grunt 11 | . 7 4 Sentry 2 | . . 2 Best Kill Streak 4 | . 4 4 Combat Bots Only 4 | . 3 4 Max Kills in Single Turn 2 | . 2 2 Gunslinging . | . . . Exploded 2 | . 2 2 Melee 1 | . . 1 Uniques/NPCs Destroyed . | . . . Combat | -11 -10 -9 -------- Run | Yrd Mat Mat Hostile Shots Fired 171 | . 41 130 Missed 62 | . 13 49 Damage Taken 1444 | . 355 1089 Core 457 | . 53 404 Absorbed by Shields . | . . . Redirected to Shielding 50 | . . 50 Core Remaining (%) 89 | 100 78 . Volleys Fired 70 | . 45 25 Largest 2 | . 2 2 Hottest 103 | . 85 103 Shots Fired 97 | . 67 30 Gun 33 | . 22 11 Cannon 48 | . 35 13 Launcher 16 | . 10 6 Special . | . . . Kinetic 68 | . 51 17 Thermal 13 | . 6 7 Explosive 16 | . 10 6 Electromagnetic . | . . . Robot Hit Streak 6 | . 3 6 Robot Miss Streak 4 | . 4 4 Penetration Max . | . . . Secondary Targets . | . . . Shots Hit Robots 64 | . 28 36 Core Hits 49 | . 29 20 Critical Kills . | . . . Critical Parts Destroyed 2 | . 1 1 Critical Strikes 2 | . 1 1 Destroy 1 | . 1 . Smash 1 | . . 1 Melee Attacks 18 | . . 18 Impact 18 | . . 18 Slashing . | . . . Piercing . | . . . Sneak Attacks 1 | . . 1 Combat Hostiles . | . . . Follow-up Attacks . | . . . Damage Inflicted 2196 | . 1004 1192 Guns 141 | . 71 70 Cannons 486 | . 317 169 Explosions 1136 | . 616 520 Melee 433 | . . 433 Ramming . | . . . Kinetic 494 | . 339 155 Thermal 133 | . 49 84 Explosive 1136 | . 616 520 Electromagnetic . | . . . Impact 433 | . . 433 Slashing . | . . . Piercing . | . . . Highest Corruption . | . . . Average Corruption . | . . . Corruption Purged . | . . . Corruption Blocked . | . . . Overload Shots . | . . . Overflow Damage 189 | . 29 160 Projectiles 3 | . 3 . Explosions 29 | . 26 3 Melee 157 | . . 157 Knockbacks 4 | . 3 1 Impact 1 | . . 1 Kinetic 3 | . 3 . Secondary . | . . . Self-Inflicted Damage 167 | . 125 42 Shots 7 | . 4 3 Rammed . | . . . Targets Rammed . | . . . Kicked . | . . . Crushed . | . . . Highest Temperature 153 | . 140 153 Average Temperature 36 | . 27 53 Received Heat Transfer 423 | . 36 387 Siege Activations . | . . . Robots Corrupted . | . . . Combat Hostiles . | . . . Parts Fried 3 | . . 3 Impact Corruptions 4 | . . 4 Robots Melted . | . . . Combat Hostiles . | . . . Parts Melted . | . . . Heat Transferred 208 | . 60 148 Parts Sabotaged . | . . . Parts Stolen . | . . . Parts Stripped . | . . . Power Chain Reactions . | . . . Alert | -11 -10 -9 ------- Run | Yrd Mat Mat Peak Influence 365 | . 365 283 Initial 98 | . . 98 Average 152 | . 159 155 Maximum Alert Level 1 | . 1 1 Low Security (%) 69 | 100 56 86 Level 1 30 | . 43 13 Level 2 . | . . . Level 3 . | . . . Level 4 . | . . . Level 5 . | . . . High Security . | . . . Max Security . | . . . Squads Dispatched 4 | . 3 1 Investigation 1 | . 1 . Extermination . | . . . Reinforcement 3 | . 2 1 Assault . | . . . Garrison . | . . . Intercept . | . . . Searches Triggered . | . . . Construction Impeded . | . . . Haulers Reinforced . | . . . Active Scanning Responses . | . . . Cargo Convoy Interrupts . | . . . Stealth | -11 -10 -9 --------- Run | Yrd Mat Mat Distress Signals 1 | . 1 . Communications Jammed . | . . . Distress Signals . | . . . Times Spotted 49 | . 28 21 Peak Tracking Total 8 | . 5 8 Tactical Retreats 1 | . . 1 Traps | -11 -10 -9 ------- Run | Yrd Mat Mat Traps Triggered 3 | . 3 . Indirectly . | . . . Trap Hack Attempts . | . . . Triggered . | . . . Disarmed . | . . . Reprogrammed . | . . . Reused . | . . . Traps Extracted . | . . . Installed . | . . . Triggered . | . . . Machines | -11 -10 -9 ---------- Run | Yrd Mat Mat Machines Disabled 6 | . 5 1 Max in Single Turn 2 | . 2 1 Machines Repaired . | . . . Machines Dismantled . | . . . Machines Sabotaged . | . . . Overloaded Fab Kills . | . . . Hacking | -11 -10 -9 --------- Run | Yrd Mat Mat Machines Accessed 9 | . 6 3 Terminals 6 | . 5 1 Fabricators . | . . . Repair Stations 1 | . . 1 Recycling Units 1 | . 1 . Scanalyzers 1 | . . 1 Garrison Access . | . . . Total Hacks 30 | . 21 9 Successful 18 | . 11 7 Failed 12 | . 10 2 Catastrophic 1 | . 1 . Database Lockouts . | . . . Manual 3 | . . 3 Terminals 21 | . 15 6 Fabricators . | . . . Repair Stations 1 | . . 1 Recycling Units 6 | . 6 . Scanalyzers 2 | . . 2 Garrison Access . | . . . Terminal Hacks 10 | . 6 4 Record 4 | . 2 2 Prototype ID Bank 1 | . 1 . Branch Access Points 1 | . . 1 Emergency Access Points 1 | . 1 . Alert Level 1 | . . 1 Locate Traps 1 | . 1 . Hauler Manifests 1 | . 1 . Fabricator Hacks . | . . . Repair Station Hacks 1 | . . 1 Refit 1 | . . 1 Recycling Unit Hacks 5 | . 5 . Process 1 | . 1 . Report Inventory 2 | . 2 . Retrieve Matter 1 | . 1 . Retrieve Components 1 | . 1 . Scanalyzer 2 | . . 2 Insert Component 1 | . . 1 Analyze 1 | . . 1 Garrison Access Hacks . | . . . Unauthorized Hacks . | . . . Terminals . | . . . Fabricators . | . . . Repair Stations . | . . . Recycling Units . | . . . Scanalyzers . | . . . Garrison Access . | . . . Data Cores Recovered . | . . . Used . | . . . Hacking Detections 6 | . 5 1 Full Trace Events . | . . . Feedback Events . | . . . Feedback Blocked . | . . . Robot Schematics Acquired . | . . . Robots Built . | . . . Authchips . | . . . Time . | . . . Total Robot Build Rating . | . . . Part Schematics Acquired 1 | . . 1 Parts Built . | . . . Authchips . | . . . Time . | . . . Total Part Build Rating . | . . . Parts Repaired . | . . . Time . | . . . Parts Recycled . | . . . Recycled Matter . | . . . Retrieved Matter 191 | . 191 . Retrieved Components 9 | . 9 . Parts Scanalyzed 1 | . . 1 Part Schematics Acquired 1 | . . 1 Parts Damaged . | . . . Bothacking | -11 -10 -9 ------------ Run | Yrd Mat Mat Used RIF Installer . | . . . Robots Hacked . | . . . Non-combat . | . . . Combat . | . . . Robot Hacks Applied . | . . . Relay Couplers Released . | . . . Fabnet Peak Effective % . | . . . Robots Rewired . | . . . Allies Hacked . | . . . Hacks Repelled . | . . . Allies | -11 -10 -9 -------- Run | Yrd Mat Mat Total Allies . | . . . Largest Group . | . . . Highest-Rated Group . | . . . Highest-Rated Ally . | . . . Total Orders . | . . . Ally Attacks . | . . . Total Damage . | . . . Kills . | . . . Allies Corrupted . | . . . Allies Melted . | . . . Intel | -11 -10 -9 ------- Run | Yrd Mat Mat Robot Analysis Total . | . . . Derelict Logs Recovered . | . . . Drone Launches . | . . . Drone Recoveries . | . . . Exploration | -11 -10 -9 ------------- Run | Yrd Mat Mat Turns Passed 1652 | 60 984 608 Spaces Moved 1100 | 46 661 393 Core 8 | 5 2 1 Treads . | . . . Legs 810 | 41 557 212 Wheels 282 | . 102 180 Hover . | . . . Flight . | . . . Fastest Speed 50 | 50 100 50 Average Speed 114 | 112 116 110 Slowest Speed 190 | 120 120 190 Overloaded Moves . | . . . Propulsion Burnouts . | . . . Robots Hopped . | . . . Cave-ins Triggered . | . . . Exploration Rate (%) 40 | 3 85 32 Regions Visited 2 Branch Regions . Pre-discovered Areas . | . . . Known Exits Taken . | . . . Unknown Exits Taken 2 | 1 1 . Scrap Searched . | . . . Spaces Dug . | . . . Terrain Destroyed 96 | . 57 39 Melee . | . . . Projectile . | . . . AOE 96 | . 57 39 Terrain Rammed . | . . . Walls Destroyed . | . . . Machines Disabled . | . . . Actions | -11 -10 -9 --------- Run | Yrd Mat Mat Total 1366 | 52 806 508 Wait 116 | . 66 50 Move 1098 | 45 660 393 Hop . | . . . Pick Up 14 | 2 10 2 Fast Attach 23 | 5 12 6 Attach 5 | . 1 4 Detach 1 | . . 1 Swap 7 | . 3 4 Drop 14 | . 9 5 Fire 70 | . 45 25 Melee 18 | . . 18 Ram . | . . . Kick . | . . . Crush . | . . . Escape Stasis . | . . . Rewire . | . . . Trap . | . . . Miscellaneous . | . . . Route ------- -11/Scrapyard -10/Materials (discovered 4 exits: *Mat x3 / [*Min]) -9/Materials (discovered 2 exits: [*Mat] / *Min) History --------- Turn | Location | Event 7 | -11/Scrapyard | Discovered new exit (range 15) 61 | -11/Scrapyard | Entered Materials 317 | -10/Materials | Build established: Mutant 429 | -10/Materials | Discovered new exit (range 12) 596 | -10/Materials | Discovered new exit (range 14) 672 | -10/Materials | Discovered new exit (range 8) 748 | -10/Materials | Discovered new exit (range 5) 1045 | -10/Materials | Entered another Materials area 1045 | -9/Materials | Evolved 2 slots: Propulsion x1, Utility x1 1172 | -9/Materials | Identified exit to Mines 1249 | -9/Materials | Discovered new exit (range 16) 1431 | -9/Materials | Core integrity fell below 50% 1597 | -9/Materials | Core integrity fell below 20% 1653 | -9/Materials | Destroyed by S-10 Pest with Light Assault Rifle Last Messages --------------- 01620_ G-34 Mercenary destroyed. 01623_ Acquired 38 matter. 01624_ G-34 Mercenary suffers critical hit (Smash). 01624_ Destroyed Heat Sink. 01624_ G-34 Mercenary system corrupted by crushing effect. 01624_ G-34 Mercenary knocked back. 01624_ G-34 Mercenary misfires. 01628_ Acquired Aluminum Leg. 01629_ Destroyed Ion Engine. 01629_ G-34 Mercenary system corrupted by crushing effect. 01630_ G-34 Mercenary system terminally corrupted. 01630_ Aluminum Leg fried. 01632_ Acquired 41 matter. 01632_ Propulsion Shielding destroyed. 01636_ Acquired 1 matter. 01645_ Weight Redist. System destroyed. Map ----- +----------------------------------------------------+ | ? """????????????????????????????????????? | | """ # """ ?????????????????????????????????? | | "" # """ ??????????????????????????????????? | | # "" ???????????????????????????????????? | | ##### """ ??? ??????????????????????????????? | | "" ??????????????????????????????? | | """ ?????????????????????????????? | | " #????????????????????????????? | | #????????????????????????????? | | %!% #????????????????????????????? | | [! [%= ######## ?????????????????????????????? | | [! ! #???#?## ?????????????????????????????? | | % ????!! ?????????????????????????????? | | #### #?????! #????????????????????????????? | | #?????= #????????????????????????????? | | #?????? ^ ##???????????????????????????? | | #?????? ????????????????????????????? | | ## ####??????? ????????????????????????????? | | # #??????????# ????????????????????????????? | | # #??????????# ###########??????????????????? | | # #??????????# # ! #??????????????????? | | # ##########?# # #??????????????????? | | # # #?# ^ # #??????????????????? | | # # #?# # """ """ #??????????????????? | | # # #?# g """ """ # ???????????????? | | # # #?# # """@""" # ??????????????? | | # / #?# # s s # #??????????????? | | ## # ### # # #??????????????? | | ## # +[ ########### #??????????????? | | # !#######?????????? #??????????????? | | # #???????????????? #??????????????? | | ##########???????????????# #??????????????? | | ###############??????????# #??????????????? | | "" # """ #??????????+ #??????????????? | | """ # """"" "T" #??????????# #??????????????? | | " # """"" #??????????# #??????????????? | | # """"" #??????????# #??????????????? | | / #??????????# #??????????????? | | # #??????????# ##?????????????? | | ###+###########???????#### * ##????????????? | | ################## # #????????????? | | #????????????? | | ################### #????????????? | | ##+########??????????????#### #????????????? | | ## [ #???????########## ### [ ##????????????? | | ?# """ #???????# ##?????????????? | | ?# """ #???????# """"" * #??????????????? | | ?# """ #???????# "" """"" + ##########?????? | | ?# #???????# S"" """"" # # #?????? | | ?# #???????# "" # # """ #?????? | +----------------------------------------------------+ Best States ------------- Heat Dissipation 28 Energy Generation 12 Energy Capacity 265 Matter Stores 300 Matter Capacity 300 Sight Range 16 Robot Scan Range 14 Terrain Scan Density 10 Additional Mass Support 6 Propulsion Shielding 33 Evasion (%) 55 Item Schematics ----------------- Ion Engine | -9/Materials | Scanalyzed Robot Schematics ------------------ None Fabricated ------------ Nothing Alien Tech Used ----------------- None Achievements -------------- None Challenges ------------ None Game ------ Seed HeavySwarmFragment Manual? 0 Play Time 00:31:06 Cumulative 7.1 hours Start 2024.05.16 @ 20:53:00 End 2024.05.16 @ 21:22:28 Sessions 1 Manual Loads 0 Difficulty Rogue Special Mode None Game No. 6 Rogue 6 Adventurer 0 Explorer 0 Win Type - Total 0 Types 0/0/0/0/0/0/0/0/0 Lore% 5 Gallery% 10 Achievement% 10 Wizard Run 0 Options --------- Layout 1 ASCII 0 Keyboard 0 Movement Mouse Keybinds 0 Fullscreen 1 Font 32/SmallcapsGlow Map View 50x35 Zoom Use 0% Tactical HUD 1 Map Filters NONE Filters NONE Steam 1 RUN: cae77664-c87a-4def-915e-87c6c8325e55